Cogmind - Beta 13 @@@ ROGUE MODE // 2024.04.01 @ 20:27:05 Player: SuperDrops Result: Destroyed by SU-PM9(R) with Subdweller Machine Gun Performance ------------- Evolutions (0) 0 Regions Visited (3) 600 Robots Destroyed (23) 115 Value Destroyed (527) 527 Prototype IDs (0) 0 Alien Tech Used (0) 0 Bonus (0) 0 TOTAL SCORE: 1242 Bonus ------- None Cogmind --------- Core Integrity 0/250 Matter 265/300 Energy 68/100 System Corruption 0% Temperature Cool (1) Movement Treading (480) Ox4 Location -10/Subcaves Parts ------- > --- POWER (1) -------- (None) > --- PROPULSION (2) --- Light Treads > --- UTILITY (2) ------ Huge Storage Unit Signal Interpreter > --- WEAPON (2) ------- Welding Torch > --- INVENTORY (25) --- Light Treads Light Treads Aluminum Leg Aluminum Leg Wheel Small Storage Unit Large Storage Unit High-capacity Storage Unit Structural Scanner Sensor Array Peak State ------------ > --- POWER ------------ Light Ion Engine > --- PROPULSION ------- Wheel Compact Wheel > --- UTILITY ---------- Large Storage Unit Structural Scanner > --- WEAPON ----------- EM Pulse Gun Assault Rifle > --- INVENTORY -------- Ion Engine Light Treads Light Treads Aluminum Leg Aluminum Leg Wheel Small Storage Unit Sensor Array Medium Laser Grenade Launcher [Rating: 8] Favorites ----------- Power Ion Engine Engine Ion Engine Propulsion Light Treads Treads Light Treads Wheel Wheel Utility Signal Interpreter Device Structural Scanner Storage Huge Storage Unit Processor Signal Interpreter Weapon Grenade Launcher Energy Gun EM Pulse Gun Ballistic Gun Assault Rifle Launcher Grenade Launcher Special Weapon Welding Torch Special Melee Weapon Datajack Build | -11 -10 -10 -10 ------- Run | Yrd Mat Min Sub Slots Evolved . | . . . . Power . | . . . . Propulsion . | . . . . Utility . | . . . . Weapon . | . . . . Parts Attached 20 | 6 10 2 2 Power 2 | 1 1 . . Engine 2 | 1 1 . . Core . | . . . . Reactor . | . . . . Propulsion 6 | 2 2 2 . Treads 2 | . . 2 . Leg . | . . . . Wheel 4 | 2 2 . . Hover . | . . . . Flight . | . . . . Utility 6 | 1 5 . . Device 1 | . 1 . . Storage 4 | 1 3 . . Processor 1 | . 1 . . Hackware . | . . . . Protection . | . . . . Artifact . | . . . . Weapon 6 | 2 2 . 2 Energy Gun 2 | 1 . . 1 Energy Cannon . | . . . . Ballistic Gun 1 | 1 . . . Ballistic Cannon . | . . . . Launcher 1 | . 1 . . Special Weapon 1 | . . . 1 Impact Weapon . | . . . . Slashing Weapon . | . . . . Piercing Weapon . | . . . . Special Melee Weapon 1 | . 1 . . Unidentified Prototypes . | . . . . Parts Lost 12 | . 6 3 3 Power 2 | . 1 1 . Propulsion 5 | . 2 2 1 Utility . | . . . . Weapon 5 | . 3 . 2 Highest Loss Streak 4 | . 4 3 2 To Critical Strikes . | . . . . Average Slot Usage (%) 79 | . 91 74 69 Engine 6 | . 13 3 . Treads 14 | . . 20 27 Wheel 12 | . 27 7 . Device 1 | . 4 . . Storage 14 | . 14 14 14 Processor 11 | . 8 14 14 Energy Gun 1 | . 2 . . Ballistic Gun 1 | . 3 . . Launcher 12 | . 10 14 12 Special Melee Weapon 1 | . 4 . . Naked Turns . | . . . . Heaviest Build 88 | 12 88 88 83 Greatest Support 40 | 26 26 40 40 Greatest Overweight (x) 8 | . 4 8 4 Average Overweight (x) 2 | . 1 2 1 Largest Inventory Capacity 25 | 8 25 25 25 Average Capacity 22 | 6 18 25 25 Most Carried 14 | 6 14 14 12 Average Carried 11 | 4 10 12 11 Final Capacity 25 | 8 25 25 25 Final Carried 14 | 6 14 12 10 Class Distribution -------------------- 100% | Mutant Dominant Class ---------------- Mutant | -10/Materials Mutant | -10/Mines Mutant | -10/Subcaves Resources | -11 -10 -10 -10 ----------- Run | Yrd Mat Min Sub Matter Collected 640 | 249 267 61 63 Remotely . | . . . . Salvage Created 472 | . 421 . 51 Parts 53 | . 46 . 7 Haulers Intercepted 1 | . 1 . . Recyclers Shooed . | . . . . Parts Field Recycled . | . . . . Retrieved Matter . | . . . . Parts Self-Destructed 2 | . . . 2 Prevented . | . . . . Kills | -11 -10 -10 -10 ------- Run | Yrd Mat Min Sub Combat Hostiles Destroyed 16 | . 14 1 1 Guns 7 | . 6 . 1 AOE 9 | . 8 1 . Classes Destroyed 9 | . 7 1 1 Worker 2 | . 2 . . Tunneler 1 | . 1 . . Hauler 1 | . 1 . . Operator 1 | . 1 . . Watcher 2 | . 2 . . Swarmer 6 | . 6 . . Grunt 8 | . 8 . . Demolisher 1 | . . 1 . Subdweller 1 | . . . 1 Best Kill Streak 6 | . 6 1 1 Combat Bots Only 4 | . 4 1 1 Max Kills in Single Turn 2 | . 2 1 1 Gunslinging . | . . . . Exploded 2 | . 2 1 . Melee . | . . . . Uniques/NPCs Destroyed . | . . . . Combat | -11 -10 -10 -10 -------- Run | Yrd Mat Min Sub Hostile Shots Fired 99 | . 66 5 28 Missed 25 | . 18 . 7 Damage Taken 1153 | . 510 208 435 Core 252 | . 77 98 77 Absorbed by Shields . | . . . . Core Remaining (%) 100 | 100 . . . Volleys Fired 72 | . 51 3 18 Largest 2 | . 2 1 1 Hottest 60 | . 60 30 50 Shots Fired 86 | . 65 3 18 Gun 62 | . 44 . 18 Cannon . | . . . . Launcher 24 | . 21 3 . Special . | . . . . Kinetic 30 | . 30 . . Thermal 18 | . . . 18 Explosive 24 | . 21 3 . Electromagnetic 14 | . 14 . . Robot Hit Streak 11 | . 6 3 11 Robot Miss Streak 5 | . 5 . 2 Penetration Max . | . . . . Secondary Targets 1 | . 1 . . Max Gunslinging Chain 1 | . 1 . . Shots Hit Robots 46 | . 29 3 14 Core Hits 39 | . 33 4 2 Critical Kills . | . . . . Critical Parts Destroyed . | . . . . Critical Strikes 1 | . . . 1 Burn 1 | . . . 1 Melee Attacks . | . . . . Impact . | . . . . Slashing . | . . . . Piercing . | . . . . Sneak Attacks . | . . . . Combat Hostiles . | . . . . Follow-up Attacks . | . . . . Damage Inflicted 1359 | . 1154 31 174 Guns 495 | . 321 . 174 Cannons . | . . . . Explosions 864 | . 833 31 . Melee . | . . . . Ramming . | . . . . Kinetic 228 | . 228 . . Thermal 174 | . . . 174 Explosive 864 | . 833 31 . Electromagnetic 93 | . 93 . . Impact . | . . . . Slashing . | . . . . Piercing . | . . . . Highest Corruption . | . . . . Average Corruption . | . . . . Corruption Purged . | . . . . Corruption Blocked . | . . . . Overload Shots . | . . . . Overflow Damage 8 | . 8 . . Projectiles . | . . . . Explosions 8 | . 8 . . Melee . | . . . . Knockbacks . | . . . . Impact . | . . . . Kinetic . | . . . . Secondary . | . . . . Self-Inflicted Damage 23 | . 23 . . Shots 1 | . 1 . . Rammed . | . . . . Targets Rammed . | . . . . Kicked . | . . . . Crushed . | . . . . Highest Temperature 30 | . 30 . . Average Temperature 9 | . 9 . . Received Heat Transfer 246 | . 168 . 78 Siege Activations . | . . . . Robots Corrupted . | . . . . Combat Hostiles . | . . . . Parts Fried . | . . . . Impact Corruptions . | . . . . Robots Melted . | . . . . Combat Hostiles . | . . . . Parts Melted . | . . . . Heat Transferred 592 | . . . 592 Parts Sabotaged . | . . . . Parts Stolen . | . . . . Parts Stripped . | . . . . Power Chain Reactions . | . . . . Alert | -11 -10 -10 -10 ------- Run | Yrd Mat Min Sub Peak Influence 269 | . 269 104 . Initial 104 | . . 104 . Average 103 | . 145 70 . Maximum Alert Level 1 | . 1 . . Low Security (%) 94 | 100 88 100 . Level 1 5 | . 11 . . Level 2 . | . . . . Level 3 . | . . . . Level 4 . | . . . . Level 5 . | . . . . High Security . | . . . . Max Security . | . . . . Squads Dispatched 2 | . 2 . . Investigation . | . . . . Extermination . | . . . . Reinforcement 2 | . 2 . . Assault . | . . . . Garrison . | . . . . Intercept . | . . . . Searches Triggered . | . . . . Construction Impeded . | . . . . Haulers Reinforced . | . . . . Active Scanning Responses . | . . . . Cargo Convoy Interrupts . | . . . . Stealth | -11 -10 -10 -10 --------- Run | Yrd Mat Min Sub Distress Signals . | . . . . Communications Jammed . | . . . . Distress Signals . | . . . . Times Spotted 25 | . 21 1 3 Peak Tracking Total 4 | . 4 1 3 Tactical Retreats . | . . . . Traps | -11 -10 -10 -10 ------- Run | Yrd Mat Min Sub Traps Triggered 1 | . 1 . . Indirectly . | . . . . Trap Hack Attempts . | . . . . Triggered . | . . . . Disarmed . | . . . . Reprogrammed . | . . . . Reused . | . . . . Traps Extracted . | . . . . Installed . | . . . . Triggered . | . . . . Machines | -11 -10 -10 -10 ---------- Run | Yrd Mat Min Sub Machines Disabled 3 | . 3 . . Max in Single Turn 2 | . 2 . . Machines Repaired . | . . . . Machines Dismantled . | . . . . Machines Sabotaged . | . . . . Overloaded Fab Kills . | . . . . Hacking | -11 -10 -10 -10 --------- Run | Yrd Mat Min Sub Machines Accessed . | . . . . Terminals . | . . . . Fabricators . | . . . . Repair Stations . | . . . . Recycling Units . | . . . . Scanalyzers . | . . . . Garrison Access . | . . . . Total Hacks . | . . . . Successful . | . . . . Failed . | . . . . Catastrophic . | . . . . Database Lockouts . | . . . . Manual . | . . . . Terminals . | . . . . Fabricators . | . . . . Repair Stations . | . . . . Recycling Units . | . . . . Scanalyzers . | . . . . Garrison Access . | . . . . Terminal Hacks . | . . . . Fabricator Hacks . | . . . . Repair Station Hacks . | . . . . Recycling Unit Hacks . | . . . . Scanalyzer . | . . . . Garrison Access Hacks . | . . . . Unauthorized Hacks . | . . . . Terminals . | . . . . Fabricators . | . . . . Repair Stations . | . . . . Recycling Units . | . . . . Scanalyzers . | . . . . Garrison Access . | . . . . Data Cores Recovered 1 | . 1 . . Used . | . . . . Hacking Detections . | . . . . Full Trace Events . | . . . . Feedback Events . | . . . . Feedback Blocked . | . . . . Robot Schematics Acquired . | . . . . Robots Built . | . . . . Authchips . | . . . . Time . | . . . . Total Robot Build Rating . | . . . . Part Schematics Acquired . | . . . . Parts Built . | . . . . Authchips . | . . . . Time . | . . . . Total Part Build Rating . | . . . . Parts Repaired . | . . . . Time . | . . . . Parts Recycled . | . . . . Recycled Matter . | . . . . Retrieved Matter . | . . . . Retrieved Components . | . . . . Parts Scanalyzed . | . . . . Part Schematics Acquired . | . . . . Parts Damaged . | . . . . Bothacking | -11 -10 -10 -10 ------------ Run | Yrd Mat Min Sub Used RIF Installer . | . . . . Robots Hacked . | . . . . Non-combat . | . . . . Combat . | . . . . Robot Hacks Applied . | . . . . Relay Couplers Released . | . . . . Fabnet Peak Effective % . | . . . . Robots Rewired . | . . . . Allies Hacked . | . . . . Hacks Repelled . | . . . . Allies | -11 -10 -10 -10 -------- Run | Yrd Mat Min Sub Total Allies . | . . . . Largest Group . | . . . . Highest-Rated Group . | . . . . Highest-Rated Ally . | . . . . Total Orders . | . . . . Ally Attacks . | . . . . Total Damage . | . . . . Kills . | . . . . Allies Corrupted . | . . . . Allies Melted . | . . . . Intel | -11 -10 -10 -10 ------- Run | Yrd Mat Min Sub Robot Analysis Total . | . . . . Derelict Logs Recovered 3 | . . 2 1 Drone Launches . | . . . . Drone Recoveries . | . . . . Exploration | -11 -10 -10 -10 ------------- Run | Yrd Mat Min Sub Turns Passed 1651 | 53 593 570 435 Spaces Moved 809 | 39 407 236 127 Core 2 | 2 . . . Treads 256 | . . 129 127 Legs . | . . . . Wheels 551 | 37 407 107 . Hover . | . . . . Flight . | . . . . Fastest Speed 50 | 50 90 140 240 Average Speed 179 | 90 111 239 316 Slowest Speed 480 | 100 140 320 480 Overloaded Moves . | . . . . Propulsion Burnouts . | . . . . Robots Hopped . | . . . . Cave-ins Triggered . | . . . . Exploration Rate (%) 39 | 4 82 55 15 Regions Visited 3 Branch Regions 2 Pre-discovered Areas 2 | . . 2 . Known Exits Taken 2 | . 1 1 . Unknown Exits Taken 1 | 1 . . . Scrap Searched 4 | . . 2 2 Spaces Dug . | . . . . Terrain Destroyed 88 | . 79 9 . Melee . | . . . . Projectile . | . . . . AOE 88 | . 79 9 . Terrain Rammed . | . . . . Walls Destroyed . | . . . . Machines Disabled . | . . . . Actions | -11 -10 -10 -10 --------- Run | Yrd Mat Min Sub Total 924 | 56 481 240 147 Wait . | . . . . Move 806 | 38 406 235 127 Hop . | . . . . Pick Up 26 | 12 14 . . Fast Attach . | . . . . Attach 16 | 6 6 2 2 Detach . | . . . . Swap 4 | . 4 . . Drop . | . . . . Fire 72 | . 51 3 18 Melee . | . . . . Ram . | . . . . Kick . | . . . . Crush . | . . . . Escape Stasis . | . . . . Rewire . | . . . . Trap . | . . . . Miscellaneous . | . . . . Route ------- -11/Scrapyard -10/Materials (discovered 3 exits: *Mat x2 / *Min) -10/Mines (discovered 2 exits: *Mat / *Sub) -10/Subcaves (discovered 1 exit: Mat) History --------- Turn | Location | Event 11 | -11/Scrapyard | Discovered new exit (range 16) 54 | -11/Scrapyard | Entered Materials 237 | -10/Materials | Lost 4 parts (1p1n2w) 305 | -10/Materials | Build established: Mutant 323 | -10/Materials | Discovered new exit (range 16) 337 | -10/Materials | Identified exit to Materials 395 | -10/Materials | Discovered exit to Materials (range 8) 613 | -10/Materials | Discovered new exit (range 13) 629 | -10/Materials | Identified exit to Mines 647 | -10/Materials | Entered Mines 648 | -10/Mines | Assembled infested the area 653 | -10/Mines | Assisted by a Guerilla fighting off Assembled 688 | -10/Mines | Learned location of Zion (-6) 699 | -10/Mines | Discovered exit to Materials (range 12) 800 | -10/Mines | Core integrity fell below 50% 832 | -10/Mines | Lost 3 parts (1p2n) 868 | -10/Mines | Learned location of Storage (-8) 1185 | -10/Mines | Discovered new exit (range 10) 1213 | -10/Mines | Identified exit to Subcaves 1217 | -10/Mines | Entered Subcaves 1470 | -10/Subcaves | Identified exit to Materials 1624 | -10/Subcaves | Core integrity fell below 20% 1652 | -10/Subcaves | Destroyed by SU-PM9(R) with Subdweller Machine Gun Last Messages --------------- Found Riot Gun. Found Battle Cannon. Found 42 Matter. Acquired 42 matter. Subatomizers dissect the Riot Gun. Acquired derelict log, extracted data. Searching scrap... Found Battle Cannon. Found 21 Matter. Acquired 21 matter. Grenade Launcher destroyed. SU-PM9(R) emerges from concealment. GZ-AF5(R) suffers critical hit (Burn). GZ-AF5(R) destroyed. Lgt. Treads destroyed. 7A-DHA(R) affixes Scrap Shield Fragment to Scrap Shield. Med. Laser destroyed. SU-PM9(R) affixes Scrap Shield Fragment to Scrap Shield. Map ----- +----------------------------------------------------+ | ?????????# #### ## # #?? #???? #???# | | ??????????# ] ##? ###?? ##????# | | ???????????# # # # # ## ??#??????# | | ????????????????##### #### ?????????# | | ????????????????????## ##? ???????????# ## | | ????????????????????# ### #????????????###?? | | ???????????????#??#### # #?????????????????? | | ??????????????## ## # #??????????????????? | | ??????????????# #?##??????????????????? | | ??????????????# ##?????????????????????? | | ??????????# ## ##??????????????????????? | | ?????????# ##### ####????????????????????? | | ?????????# ??### ##???????????????????? | | ?????????# ???# ####????????????????? | | ?????????## ?????## ##???????????????? | | ?????????##???????## #???????????????? | | ?????????# ????????# ###???????????????? | | ?????????# ????????# ## ##?????????????????? | | ?????????# ??????## ##?####?????????????????? | | ?????????# ???#### ##??## ##??##????????????? | | ?????????# #?## ##?? ## ####?????????? | | ?????????# ## ##?? ????????? | | ?????????# #?? ???????????? | | ?????????## ### #??????????????? | | ??????????## #??????????????? | | ??????????## !*R @ $ #??????????????? | | ??????????# %R ### ####??????????????? | | ??????????## ##!& #???? #?????????????????? | | ???????????# ### ##???????????????????????? | | ???????????# #?###????????????????????????? | | ??????????# #??????????????????????????? | | ??????????# #??????????????????????????? | | ?????????#" #??????????????????????????? | | ???????? #??????????????????????????? | | ??????? #??????????????????????????? | | ??????# #"" #?????????????????????????? | | ??????" ###" # #?????????????????????????? | | ??????????# ## ## #?????????????????????????? | | ??????????## ?# #? # ?????????????????????????? | | ???????????# ?# ? ????????????????????????? | | ??????????? ? ? ? ????????????????????????? | | ??????????? ?? # ? ??????????????????????????? | | ??????????????? ?#??????????????????????????????? | | ?????????????????????????????????????????????????? | | ?????????????????????????????????????????????????? | | ?????????????????????????????????????????????????? | | ?????????????????????????????????????????????????? | | ?????????????????????????????????????????????????? | | ?????????????????????????????????????????????????? | | ?????????????????????????????????????????????????? | +----------------------------------------------------+ Best States ------------- Heat Dissipation 25 Energy Generation 10 Energy Capacity 250 Matter Stores 300 Matter Capacity 300 Sight Range 16 Terrain Scan Density 10 Evasion (%) 42 Recoil Reduction 2 Item Schematics ----------------- None Robot Schematics ------------------ None Fabricated ------------ Nothing Alien Tech Used ----------------- None Achievements -------------- None Challenges ------------ None Game ------ Seed AntigravRainbowArray Manual? 0 Play Time 00:14:59 Cumulative 5.9 hours Start 2024.04.01 @ 20:12:20 End 2024.04.01 @ 20:27:05 Sessions 1 Manual Loads 0 Difficulty Rogue Special Mode None Game No. 19 Rogue 19 Adventurer 0 Explorer 0 Win Type - Total 0 Types 0/0/0/0/0/0/0/0/0 Lore% 12 Gallery% 7 Achievement% 7 Wizard Run 0 Options --------- Layout 1 ASCII 0 Keyboard 0 Movement Mouse Keybinds 0 Fullscreen 2 Font 24/Proggy Map View 50x35 Zoom Use 0% Tactical HUD 0 Map Filters NONE Filters NONE Steam 1 RUN: 99786b63-15d4-497b-b3e8-382f1b54205c